bitfinex-derivatives/quotes_BTCF0:USTF0_20210406
["timestamp","ask_amount","ask_price","bid_price","bid_amount"]
[1617726734067,0.15529754,58007.0,58006.0,1.81227432]
[1617726734267,0.10419754,58007.0,58006.0,1.81227432]
[1617726734867,0.10419754,58007.0,58006.0,1.91953087]
[1617726735268,0.10419754,58007.0,58006.0,1.98072068]
[1617726737570,0.10419754,58007.0,58006.0,1.87346413]
[1617726737971,3.53779754,58007.0,58006.0,1.87346413]
[1617726738174,3.53779754,58007.0,58006.0,1.81227432]
[1617726738576,3.53779754,58007.0,58006.0,1.30466823]
[1617726739478,3.53779754,58007.0,58006.0,1.24347672]
[1617726739675,0.10419754,58007.0,58006.0,1.24347672]
[1617726743379,0.30419754,58007.0,58006.0,1.24347672]
[1617726743980,0.30419754,58007.0,58006.0,1.23457672]
[1617726744381,0.30419754,58007.0,58006.0,1.29576933]
[1617726744782,0.30419754,58007.0,58006.0,1.23457672]
[1617726745183,0.30419754,58007.0,58006.0,1.29576898]
[1617726745683,0.30419754,58007.0,58006.0,1.23457672]
[1617726746285,0.10419754,58007.0,58006.0,1.23457672]
[1617726748388,0.10419754,58007.0,58006.0,1.80278428]
[1617726751591,0.10419754,58007.0,58006.0,1.2957659]
[1617726751991,0.10419754,58007.0,58006.0,1.23457672]
[1617726752592,0.10419754,58007.0,58006.0,1.22807672]
[1617726752891,0.10419754,58007.0,58006.0,1.28926631]
[1617726753491,0.10419754,58007.0,58006.0,1.22807672]
[1617726753891,0.10419754,58007.0,58006.0,1.28926681]
[1617726754293,0.10419754,58007.0,58006.0,1.22807672]
[1617726754894,0.10419754,58007.0,58006.0,1.28926717]
[1617726755494,0.10419754,58007.0,58006.0,1.22807672]
[1617726755894,0.10419754,58007.0,58006.0,1.28926768]
[1617726756194,0.10419754,58007.0,58006.0,1.22807672]
[1617726758598,0.10419754,58007.0,58006.0,1.33627672]
[1617726759398,0.10419754,58007.0,58006.0,1.39746792]
[1617726763310,2.67259754,58007.0,58006.0,1.39746792]
[1617726763510,2.67259754,58007.0,58006.0,1.28926792]
[1617726764410,2.67259754,58007.0,58006.0,1.22807672]
[1617726767615,4.22399754,58007.0,58006.0,1.22807672]
[1617726767815,5.22399754,58007.0,58006.0,1.22807672]
[1617726768015,5.35298754,58007.0,58006.0,1.22807672]
[1617726768216,5.35298754,58007.0,58006.0,0.72158567]
[1617726768217,5.65851769,58007.0,58006.0,0.72158567]
[1617726768417,5.60711769,58007.0,58006.0,0.72158567]
[1617726768817,4.60711769,58007.0,58006.0,0.72158567]
[1617726769017,4.47812769,58007.0,58006.0,0.72158567]
[1617726770720,5.47812769,58007.0,58006.0,0.72158567]
[1617726774124,5.47812769,58007.0,58006.0,1.22976838]
[1617726774524,4.53002769,58007.0,58006.0,1.22976838]
[1617726774725,5.53002769,58007.0,58006.0,1.22976838]
[1617726775924,5.53002769,58007.0,58006.0,0.72158567]
[1617726776330,5.97854683,58007.0,58006.0,0.72158567]
[1617726776729,5.97854683,58007.0,58006.0,0.7827908]
[1617726777329,5.92664683,58007.0,58006.0,0.72158567]
[1617726777731,6.29363295,58007.0,58006.0,0.78279042]
[1617726778131,6.29363295,58007.0,58006.0,0.72158567]
[1617726778731,6.29363295,58007.0,58006.0,0.27587355]
[1617726778732,5.84511381,58007.0,58006.0,0.27587355]
[1617726779331,5.89741381,58007.0,58006.0,0.27587355]
[1617726779831,5.89741381,58007.0,58006.0,0.33707906]
[1617726780233,5.89741381,58007.0,58006.0,0.27587355]
[1617726782034,3.32901381,58007.0,58006.0,0.27587355]
[1617726783338,3.7765645,58007.0,58005.0,0.36577266]
[1617726783636,3.7765645,58007.0,58005.0,0.34027266]
[1617726783839,3.10404823,58007.0,58006.0,0.06120564]
[1617726784039,2.10404823,58007.0,58006.0,0.06120564]
[1617726784242,2.40922669,58007.0,58005.0,0.34027266]
[1617726784640,1.54999975,58006.0,58001.0,0.44701224]
[1617726784840,3.5891,58002.0,58001.0,0.37811224]
[1617726785040,1.74482333,58002.0,57995.0,0.50796846]
[1617726785240,0.10725655,57996.0,57994.0,0.50110356]
[1617726785440,1.60725655,57996.0,57994.0,0.32110356]
[1617726785640,1.60725655,57996.0,57995.0,3.272]
[1617726786441,1.60725655,57996.0,57995.0,3.3638091]
[1617726787042,2.60725655,57996.0,57995.0,3.4966291]
[1617726787642,0.10725655,57996.0,57995.0,3.4966291]
[1617726792850,0.10725655,57996.0,57995.0,3.7666291]
[1617726793250,0.10725655,57996.0,57995.0,1.06216864]
[1617726793850,0.10725655,57996.0,57995.0,0.97035954]
[1617726794150,0.10725655,57996.0,57995.0,0.40282]
[1617726794750,0.10725655,57996.0,57995.0,0.97020001]
[1617726799655,0.10725655,57996.0,57995.0,0.40282]
[1617726800460,0.10725655,57996.0,57995.0,0.97050064]
[1617726801060,0.10725655,57996.0,57995.0,1.47735575]
[1617726801863,0.10725655,57996.0,57995.0,0.90967511]
[1617726802263,0.10725655,57996.0,57995.0,1.47720217]
[1617726805069,0.1062366,57996.0,57995.0,4.91163541]
[1617726805267,0.1062366,57996.0,57995.0,5.00343025]
[1617726806971,0.01027031,58011.0,57995.0,5.00343025]
[1617726807172,0.01027031,58011.0,58010.0,0.10725655]
[1617726807373,0.01027031,58011.0,58010.0,0.21858655]
[1617726807572,0.9465,58019.0,58010.0,1.16954065]
[1617726807573,0.01026958,58014.0,58010.0,1.16954065]
[1617726808172,0.0102695,58016.0,58012.0,0.50538799]
[1617726808372,0.01026936,58017.0,58015.0,0.44458959]
[1617726808773,0.01026936,58017.0,58016.0,0.44457293]
[1617726809373,0.11752591,58017.0,58016.0,3.38677293]
[1617726809678,0.10725655,58017.0,58016.0,3.38677293]
[1617726810075,0.10725655,58017.0,58016.0,3.47855845]
[1617726810575,0.11752592,58017.0,58016.0,3.47855845]
[1617726810774,0.11752592,58017.0,58016.0,4.47855845]
[1617726810977,0.10725655,58017.0,58016.0,4.47855845]
[1617726811376,0.10725655,58017.0,58016.0,4.35963188]
[1617726811775,0.10725655,58017.0,58016.0,5.35963188]
[1617726813275,0.10725655,58017.0,58016.0,4.35963188]
[1617726813474,0.10725655,58017.0,58016.0,1.41743188]
[1617726813675,0.10725655,58017.0,58016.0,4.95773188]
[1617726817780,0.10725655,58017.0,58016.0,5.95773188]
[1617726817979,0.10725655,58017.0,58016.0,6.1004862]
[1617726818978,0.10725655,58017.0,58016.0,2.5601862]
[1617726819483,0.10725655,58017.0,58016.0,2.32564636]
[1617726819679,2.92285655,58017.0,58016.0,2.32564636]
[1617726820280,0.10725655,58017.0,58016.0,2.32564636]
[1617726820681,0.10725655,58017.0,58016.0,4.96324636]
[1617726821280,0.10725655,58017.0,58016.0,5.05501624]
[1617726823181,0.10725655,58017.0,58016.0,4.61044331]
[1617726823382,0.10725655,58017.0,58016.0,5.05293038]
[1617726824182,0.10725655,58017.0,58016.0,5.19568301]
[1617726825287,0.10725655,58017.0,58016.0,5.05293038]
[1617726826490,0.10725655,58017.0,58016.0,1.14533038]
[1617726826696,3.07045655,58017.0,58016.0,1.03807383]
[1617726826895,3.07045655,58017.0,58016.0,0.53425695]
[1617726827090,3.07045655,58017.0,58016.0,0.44248707]
[1617726828088,3.07045655,58017.0,58016.0,0.58242707]
[1617726828488,0.10725655,58017.0,58016.0,0.58242707]
[1617726829290,0.10725655,58017.0,58016.0,0.68968362]
[1617726829490,0.10725655,58017.0,58016.0,1.19154304]
[1617726829689,0.10725655,58017.0,58016.0,1.46154304]
[1617726829890,0.9465,58019.0,58016.0,1.46154304]
[1617726830492,0.9465,58019.0,58018.0,0.44156276]
[1617726830990,0.9465,58019.0,58018.0,0.71156276]
[1617726835993,0.9465,58019.0,58018.0,0.81186276]
[1617726837999,0.9465,58019.0,58018.0,0.54186276]
[1617726838195,0.9465,58019.0,58018.0,0.44156276]
[1617726844606,0.9465,58019.0,58017.0,0.44052105]
[1617726844907,0.9465,58019.0,58018.0,0.44071676]
[1617726847909,4.257,58019.0,58018.0,0.44071676]
[1617726848813,0.9465,58019.0,58018.0,0.44071676]
[1617726849413,0.9465,58019.0,58018.0,0.94195546]
[1617726851721,0.9465,58019.0,58018.0,0.92435546]
[1617726851912,0.9465,58019.0,58018.0,0.89845546]
[1617726852318,0.9465,58019.0,58018.0,0.39721676]
[1617726857018,0.9465,58019.0,58018.0,0.89726163]
[1617726857819,0.9465,58019.0,58018.0,0.39721676]
[1617726858220,0.9465,58019.0,58018.0,0.89741096]
[1617726858821,0.9465,58019.0,58018.0,0.39721676]
[1617726860625,0.9465,58019.0,58018.0,0.8989929]
[1617726880260,3.6287,58019.0,58018.0,0.8989929]
[1617726881661,0.9465,58019.0,58018.0,0.8989929]
[1617726886363,3.8511,58019.0,58018.0,0.8989929]
[1617726887364,0.9465,58019.0,58018.0,0.8989929]
[1617726888366,0.9465,58019.0,58018.0,1.46184445]
[1617726889166,0.9465,58019.0,58018.0,0.8989929]
[1617726891269,0.9465,58019.0,58018.0,1.4622085]
[1617726892168,0.9465,58019.0,58018.0,1.56946505]
[1617726895771,0.9465,58019.0,58018.0,1.00624945]
[1617726896572,3.4853,58019.0,58018.0,1.00624945]
[1617726897575,0.9465,58019.0,58018.0,1.00624945]
[1617726897774,3.5508,58019.0,58018.0,1.00624945]
[1617726900576,3.5508,58019.0,58018.0,0.8989929]
[1617726901678,4.5508,58019.0,58018.0,0.8989929]
[1617726902077,4.85649003,58019.0,58018.0,0.8560929]
[1617726902577,5.22330889,58019.0,58018.0,0.8560929]
[1617726903177,3.85649003,58019.0,58018.0,0.35431676]
[1617726903377,4.85649003,58019.0,58018.0,0.35431676]
[1617726904479,3.85649003,58019.0,58018.0,0.85766071]
[1617726904780,3.85649003,58019.0,58018.0,0.35431676]
[1617726904981,4.85649003,58019.0,58018.0,0.35431676]
[1617726908283,4.85649003,58019.0,58018.0,0.32441676]
[1617726908686,3.85649003,58019.0,58018.0,0.32441676]
[1617726909587,3.85649003,58019.0,58018.0,0.29921676]
[1617726909788,3.85649003,58019.0,58018.0,0.27551676]
[1617726912290,3.85649003,58019.0,58018.0,0.25021676]
[1617726912893,4.22291775,58019.0,58018.0,0.25021676]
[1617726913193,5.22291775,58019.0,58018.0,0.25021676]
[1617726913694,5.22291775,58019.0,58018.0,0.24711676]
[1617726914196,5.22291775,58019.0,58018.0,0.22451676]
[1617726915594,5.22291775,58019.0,58018.0,0.19861676]
[1617726915793,5.22291775,58019.0,58018.0,0.17601676]
[1617726917396,5.22291775,58019.0,58012.0,0.50510914]
[1617726917996,0.0102763,58013.0,58011.0,0.50505131]
[1617726918397,0.01027603,58014.0,58012.0,0.50466]
[1617726918798,0.01027354,58015.0,58013.0,0.50390598]
[1617726919097,1.01027354,58015.0,58013.0,0.50390598]
[1617726919299,1.01027354,58015.0,58012.0,0.50358529]
[1617726919499,1.0,58014.0,58012.0,0.50358529]
[1617726919699,1.0,58014.0,58005.0,0.10725655]
[1617726919700,1.0,58013.0,58011.0,0.50369749]
[1617726920099,1.0,58013.0,58009.0,0.50357467]
[1617726920100,0.01027366,58012.0,58009.0,0.50357467]
[1617726920500,0.10725655,58010.0,58009.0,0.50357467]
[1617726921500,1.10725655,58010.0,58009.0,0.50357467]
[1617726923703,0.10725655,58010.0,58009.0,0.50357467]
[1617726925005,1.10725655,58010.0,58009.0,0.50357467]
[1617726925207,1.24632655,58010.0,58009.0,0.47997467]
[1617726926308,1.10725655,58010.0,58009.0,0.47997467]
[1617726929113,1.10725655,58010.0,58001.0,0.10725655]
[1617726929813,1.10725655,58010.0,58002.0,0.27]
[1617726930413,0.10725655,58003.0,58002.0,0.27]
[1617726936019,0.10725655,58003.0,58002.0,0.71260115]
[1617726936617,0.15935655,58003.0,58002.0,0.71260115]
[1617726937018,0.10725655,58003.0,58002.0,0.71260115]
[1617726940323,0.10725655,58003.0,58002.0,1.21596207]
[1617726941223,0.10725655,58003.0,58002.0,1.35412207]
[1617726942023,3.61215655,58003.0,58002.0,1.35412207]
[1617726942226,3.61215655,58003.0,58002.0,1.91741632]
[1617726943923,3.5049,58003.0,58002.0,1.91741632]
[1617726949327,3.50388031,58003.0,58002.0,1.91741632]
[1617726956640,0.10725655,58003.0,58002.0,1.91741632]
[1617726956840,0.10725655,58003.0,58002.0,5.30001632]
[1617726957440,0.10725655,58003.0,58002.0,5.39178719]
[1617726958041,0.10725655,58003.0,58002.0,2.00918719]
[1617726958840,0.10725655,58003.0,58002.0,1.91741632]
[1617726959442,0.10623688,58003.0,58002.0,1.91741632]
[1617726961944,0.01028269,58015.0,58002.0,1.91741632]
[1617726962143,0.01028226,58016.0,58002.0,2.91741632]
[1617726962343,0.01028226,58016.0,58005.0,1.0]
[1617726962543,0.01028226,58016.0,58014.0,0.10725655]
[1617726962744,0.01028211,58018.0,58015.0,0.94408451]
[1617726963146,0.9567823,58019.0,58015.0,0.94408451]
[1617726963645,0.0102823,58018.0,58014.0,0.23955655]
[1617726964245,0.0102823,58018.0,58017.0,0.94420915]
[1617726964545,0.11753885,58018.0,58017.0,0.94420915]
[1617726964947,0.11753885,58018.0,58017.0,0.91880915]
[1617726965147,0.11753885,58018.0,58017.0,0.87800915]
[1617726965349,0.10725655,58018.0,58017.0,0.87800915]
[1617726967050,0.11753862,58018.0,58017.0,0.87800915]
[1617726967951,0.10725655,58018.0,58017.0,0.87800915]
[1617726968855,0.41277304,58018.0,58017.0,0.87800915]
[1617726969256,0.11753872,58018.0,58017.0,0.87800915]
[1617726970665,0.11753872,58018.0,58017.0,0.9852657]
[1617726971065,0.10725655,58018.0,58017.0,0.9852657]
[1617726973061,0.15945655,58018.0,58017.0,0.9852657]
[1617726973262,0.10725655,58018.0,58017.0,0.9852657]
[1617726978773,0.10725655,58018.0,58017.0,0.10725655]
[1617726979175,0.10725655,58018.0,58017.0,0.54819345]
[1617726979372,0.10725655,58018.0,58017.0,0.64563345]
[1617726980374,0.10725655,58018.0,58017.0,1.14681507]
[1617726994194,0.9465,58019.0,58017.0,1.14681507]
[1617726994593,0.9465,58019.0,58017.0,1.41681507]
[1617726994994,0.4582,58019.0,58018.0,1.14266949]
[1617726995193,0.11752287,58029.0,58028.0,2.5201]
[1617726995394,0.10725655,58029.0,58028.0,2.5201]
[1617726995595,0.01025593,58036.0,58028.0,2.5301]
[1617726995794,0.01025578,58039.0,58028.0,3.56247749]
[1617726995994,0.01025578,58039.0,58028.0,4.56247749]
[1617726996194,0.47515534,58043.0,58035.0,0.93995299]
[1617726996396,0.47515534,58043.0,58035.0,1.05154299]
[1617726996598,0.47515534,58043.0,58036.0,0.27]
[1617726996798,0.4649,58043.0,58042.0,0.10725655]
[1617726997198,0.4649,58043.0,58042.0,0.81701502]
[1617726998798,0.57215655,58043.0,58042.0,0.81701502]
[1617727006304,0.57215655,58043.0,58042.0,0.37725655]
[1617727008205,0.57215655,58043.0,58042.0,0.81540409]
[1617727008605,0.57215655,58043.0,58042.0,4.39480409]
[1617727009207,0.57215655,58043.0,58042.0,4.48653326]
[1617727009808,0.57215655,58043.0,58042.0,5.48653326]
[1617727011411,0.57215655,58043.0,58042.0,4.48653326]
[1617727012313,0.4649,58043.0,58042.0,4.53873326]
[1617727012513,0.4649,58043.0,58042.0,4.48653326]
[1617727018225,0.4649,58043.0,58042.0,0.90713326]
[1617727018625,0.4649,58043.0,58042.0,0.81540409]
[1617727021427,0.4649,58043.0,58042.0,1.81540409]
[1617727021627,0.4649,58043.0,58042.0,0.81540409]
[1617727022228,0.4649,58043.0,58042.0,1.81540409]
[1617727022630,0.4868,58048.0,58042.0,1.81540409]
[1617727023029,0.4868,58048.0,58047.0,1.0]
[1617727023230,0.10725655,58049.0,58047.0,1.58116259]
[1617727023431,0.01022256,58062.0,58061.0,2.932]
[1617727023632,0.01022256,58062.0,58061.0,3.24623]
[1617727023830,0.01022256,58062.0,58061.0,3.31623]
[1617727024032,0.01021971,58076.0,58061.0,3.31623]
[1617727024231,0.01021971,58076.0,58061.0,0.38423]
[1617727024432,0.01021914,58082.0,58075.0,3.3094]
[1617727024631,0.01021914,58082.0,58075.0,3.43048]
[1617727024834,0.01021891,58083.0,58076.0,0.27]
[1617727025035,0.01021891,58083.0,58082.0,0.10725655]
[1617727025436,0.01021891,58083.0,58082.0,0.37725655]
[1617727025636,0.01021891,58083.0,58082.0,4.05515655]
[1617727025837,0.0102187,58086.0,58082.0,4.05515655]
[1617727026040,0.0102187,58086.0,58082.0,5.05515655]
[1617727026238,0.0102187,58086.0,58085.0,1.0]
[1617727026440,0.01021813,58089.0,58085.0,1.0]
[1617727026639,0.01021813,58089.0,58086.0,1.0]
[1617727027040,0.01021775,58090.0,58088.0,0.10725655]
[1617727027241,0.01021775,58090.0,58088.0,0.24751655]
[1617727027440,0.49971772,58092.0,58088.0,0.24751655]
[1617727027643,0.49971772,58092.0,58089.0,0.27]
[1617727027841,0.4895,58092.0,58089.0,0.27]
[1617727029042,3.34125655,58090.0,58088.0,0.10725655]
[1617727029246,3.34125655,58090.0,58070.0,1.0]
[1617727029845,3.34125655,58090.0,58071.0,1.0]
[1617727030045,3.34125655,58090.0,58071.0,1.27]
[1617727030246,3.34125655,58090.0,58078.0,1.0]
[1617727030445,3.34125655,58090.0,58076.0,1.0]
[1617727030645,3.48125655,58090.0,58079.0,0.01]
[1617727031046,0.10725655,58080.0,58077.0,0.10725655]
[1617727031247,0.10725655,58080.0,58062.0,0.43110666]
[1617727031447,0.10725655,58080.0,58057.0,0.43131808]
[1617727031647,3.1284,58069.0,58057.0,0.43131808]
[1617727031850,3.24912,58069.0,58054.0,1.0]
[1617727032047,3.24912,58069.0,58058.0,0.27]
[1617727032248,3.24912,58069.0,58056.0,0.27]
[1617727032448,3.24912,58069.0,58063.0,1.0]
[1617727032648,0.12072,58069.0,58063.0,1.0]
[1617727032850,0.12072,58069.0,58067.0,1.0]
[1617727033049,0.6038,58079.0,58068.0,0.10725655]
[1617727033248,0.6038,58079.0,58068.0,0.11725655]
[1617727033650,0.4757,58079.0,58068.0,0.11725655]
[1617727035050,0.10725655,58069.0,58068.0,0.11725655]
[1617727038654,0.10725655,58069.0,58068.0,1.11725655]
[1617727039255,0.4757,58079.0,58068.0,1.11725655]
[1617727039454,0.4757,58079.0,58068.0,1.22895655]
[1617727039654,0.4757,58079.0,58078.0,1.0]
[1617727040054,0.4757,58079.0,58078.0,1.27]
[1617727041160,0.10725655,58083.0,58078.0,0.37725655]
[1617727041566,2.9724,58101.0,58078.0,1.37725655]
[1617727041757,2.9724,58101.0,58082.0,1.0]
[1617727041959,2.9724,58101.0,58082.0,1.12355]
[1617727042156,2.9724,58101.0,58088.0,1.0]
[1617727042357,2.9724,58101.0,58083.0,0.27]
[1617727042557,2.9724,58101.0,58090.0,1.0]
[1617727042758,2.9724,58101.0,58088.0,1.0]
[1617727042958,0.0522,58091.0,58088.0,1.0]
[1617727043161,2.9724,58101.0,58090.0,0.10725655]
[1617727043559,0.1281,58104.0,58090.0,0.10725655]
[1617727045063,0.10725655,58091.0,58090.0,3.68075655]
[1617727047065,0.10725655,58091.0,58090.0,4.68075655]
[1617727047565,0.10725655,58091.0,58090.0,0.10725655]
[1617727049970,0.10725655,58091.0,58090.0,1.10725655]
[1617727051173,0.10725655,58091.0,58090.0,0.10725655]
[1617727051374,0.10725655,58091.0,58090.0,1.10725655]
[1617727051674,0.10725655,58091.0,58090.0,0.10725655]
[1617727052175,0.10725655,58091.0,58090.0,1.10725655]
[1617727052775,0.10725655,58091.0,58090.0,3.81885655]
[1617727053178,0.10725655,58091.0,58090.0,4.08885655]
[1617727053579,0.10725655,58091.0,58090.0,3.08885655]
[1617727054683,0.10725655,58091.0,58090.0,4.08885655]
[1617727054879,0.10725655,58091.0,58090.0,3.08885655]
[1617727055281,0.10725655,58091.0,58090.0,0.37725655]
[1617727055881,0.15915655,58091.0,58090.0,0.37725655]
[1617727056782,0.15915655,58091.0,58090.0,1.37725655]
[1617727057684,0.15915655,58091.0,58090.0,0.37725655]
[1617727057887,0.10725655,58091.0,58090.0,0.37725655]
[1617727061488,0.10725655,58091.0,58090.0,1.37725655]
[1617727063691,0.10725655,58091.0,58090.0,0.37725655]
[1617727064092,0.10725655,58091.0,58090.0,3.76725655]
[1617727064692,0.10725655,58091.0,58090.0,4.76725655]
[1617727064892,0.10725655,58091.0,58090.0,3.76725655]
[1617727068798,0.10725655,58091.0,58090.0,3.81925655]
[1617727069400,0.10725655,58097.0,58090.0,3.76725655]
[1617727069601,0.10725655,58097.0,58090.0,4.76725655]
[1617727069903,0.10725655,58097.0,58090.0,3.76725655]
[1617727070503,0.10725655,58097.0,58090.0,3.81955655]
[1617727070703,0.10725655,58097.0,58090.0,3.76725655]
[1617727070901,0.10725655,58097.0,58091.0,1.0]
[1617727071101,0.10725655,58097.0,58090.0,3.76725655]
[1617727071309,0.10725655,58097.0,58091.0,0.27]
[1617727072103,0.10725655,58097.0,58091.0,1.27]
[1617727072502,0.10725655,58097.0,58091.0,0.27]
[1617727073102,0.10725655,58097.0,58091.0,1.27]
[1617727073303,0.10725655,58097.0,58091.0,0.27]
[1617727076405,0.10725655,58097.0,58090.0,0.10725655]
[1617727077206,0.01025516,58096.0,58091.0,0.43413213]
[1617727077607,0.01025516,58095.0,58091.0,0.43413213]
[1617727078911,0.0102555,58094.0,58091.0,0.43413213]
[1617727079514,0.01025554,58093.0,58091.0,0.43413213]
[1617727082015,0.47290212,58097.0,58091.0,0.43413213]
[1617727082016,0.01025499,58095.0,58091.0,0.43413213]
[1617727083614,0.30470295,58096.0,58091.0,0.43413213]
[1617727083615,0.31495778,58096.0,58091.0,0.43413213]
[1617727083814,0.01025483,58096.0,58091.0,0.43413213]
[1617727084617,0.01025691,58095.0,58091.0,0.43413213]
[1617727085919,0.01025667,58096.0,58091.0,0.43413213]
[1617727088624,0.01025674,58095.0,58091.0,0.43413213]
[1617727090227,0.0102579,58094.0,58091.0,0.43413213]
[1617727090628,0.01025784,58093.0,58091.0,0.43413213]
[1617727091026,0.30479,58094.0,58091.0,0.43413213]
[1617727091027,0.01025793,58094.0,58091.0,0.43413213]
[1617727091927,0.01025803,58095.0,58091.0,0.43413213]
[1617727092328,0.01025798,58094.0,58091.0,0.43413213]
[1617727093228,0.01025801,58095.0,58091.0,0.43413213]
[1617727094629,0.01025782,58096.0,58091.0,0.43413213]
[1617727100635,0.01026949,58094.0,58091.0,0.92734552]
[1617727102542,0.31542612,58094.0,58091.0,0.92734552]
[1617727103234,0.01026949,58094.0,58091.0,0.92734552]
[1617727103735,0.01027021,58094.0,58091.0,0.92734552]
[1617727104536,0.01027026,58093.0,58091.0,0.92734552]
[1617727104938,0.01027026,58094.0,58091.0,0.92734552]
[1617727105737,0.01027021,58093.0,58091.0,0.92734552]
[1617727107139,0.30515491,58094.0,58091.0,0.92734552]
[1617727107140,0.01027011,58094.0,58091.0,0.92734552]
[1617727107740,0.01027008,58095.0,58091.0,0.92734552]
[1617727108139,0.01027127,58094.0,58091.0,0.92734552]
[1617727111543,0.49977941,58092.0,58091.0,0.92734552]
[1617727112346,0.4895,58092.0,58091.0,0.92734552]
[1617727112947,0.49977938,58092.0,58091.0,0.92734552]
[1617727113350,0.79493252,58092.0,58091.0,0.92734552]
[1617727115751,0.79493252,58092.0,58091.0,1.03460207]
[1617727117356,0.49977934,58092.0,58091.0,1.03460207]
[1617727117758,0.4895,58092.0,58091.0,1.03460207]
[1617727118359,0.49977939,58092.0,58091.0,1.03460207]
[1617727118559,0.55157939,58092.0,58091.0,1.03460207]
[1617727119159,0.5413,58092.0,58091.0,1.03460207]
[1617727119559,0.4895,58092.0,58091.0,1.03460207]
[1617727119760,0.4997801,58092.0,58091.0,1.03460207]
[1617727121560,0.5505801,58092.0,58091.0,1.03460207]
[1617727121761,0.4997801,58092.0,58091.0,1.03460207]
[1617727123067,0.79495224,58092.0,58091.0,1.03460207]
[1617727123865,0.4895,58092.0,58091.0,1.03460207]
[1617727125266,0.49978015,58092.0,58091.0,1.03460207]
[1617727125668,0.7949527,58092.0,58091.0,1.03460207]
[1617727126168,0.49978014,58092.0,58091.0,1.03460207]
[1617727128969,0.4895,58092.0,58091.0,1.03460207]
[1617727130671,0.4895,58092.0,58091.0,2.03460207]
[1617727131472,0.4895,58092.0,58091.0,1.03460207]
[1617727140281,0.4895,58092.0,58091.0,2.03460207]
[1617727140682,0.01027788,58098.0,58091.0,2.03460207]
[1617727140683,0.01027788,58098.0,58092.0,1.0]
[1617727140881,0.01027788,58098.0,58097.0,2.8641]
[1617727141081,0.01027788,58098.0,58097.0,3.01245]
[1617727141280,0.01027788,58098.0,58097.0,4.02245]
[1617727141482,0.30538538,58099.0,58097.0,4.11410372]
[1617727141681,0.01027721,58102.0,58097.0,5.03891332]
[1617727141882,0.01027721,58102.0,58099.0,1.0]
[1617727142082,0.01027717,58103.0,58101.0,0.10725655]
[1617727142482,0.01026354,58104.0,58102.0,0.69224178]
[1617727142883,0.48516343,58106.0,58103.0,0.43208145]
[1617727143082,2.9464,58104.0,58103.0,0.43208145]
[1617727143482,2.9464,58104.0,58103.0,0.44208145]
[1617727144485,2.95666349,58104.0,58103.0,0.44208145]
[1617727144884,2.9464,58104.0,58103.0,0.44208145]
[1617727145985,2.95666325,58104.0,58103.0,0.44208145]
[1617727146588,0.3049501,58104.0,58103.0,0.44208145]
[1617727146785,0.3049501,58104.0,58103.0,3.88348145]
[1617727146986,0.01026311,58104.0,58103.0,4.88348145]
[1617727147185,0.01026311,58104.0,58103.0,3.88348145]
[1617727147389,0.10725655,58105.0,58103.0,0.52373447]
[1617727147585,0.10725655,58105.0,58103.0,0.66451447]
[1617727147787,0.10725655,58105.0,58103.0,0.14078]
[1617727147788,0.01026315,58104.0,58103.0,0.14078]
[1617727148187,0.01026315,58104.0,58103.0,0.57384931]
[1617727148788,0.01026315,58104.0,58103.0,1.57384931]
[1617727148990,0.10725655,58105.0,58103.0,0.57384931]
[1617727149890,0.11751974,58105.0,58104.0,0.43299707]
[1617727150290,0.10725655,58105.0,58103.0,0.14078]
[1617727150692,0.11751963,58105.0,58104.0,0.43298707]
[1617727151094,0.10725655,58105.0,58104.0,0.43298707]
[1617727153393,0.10725655,58105.0,58104.0,0.54124707]
[1617727153794,0.10725655,58105.0,58104.0,0.63289791]
[1617727155295,0.10725655,58105.0,58104.0,1.63289791]
[1617727156195,0.01025918,58109.0,58104.0,1.63289791]
[1617727156395,0.01025918,58109.0,58105.0,1.0]
[1617727156596,0.01025918,58109.0,58104.0,0.63289791]
[1617727156795,0.01025918,58109.0,58108.0,0.43226116]
[1617727157200,0.01025918,58109.0,58108.0,1.43226116]
[1617727157798,0.01025818,58110.0,58108.0,0.43226116]
[1617727158197,0.30479983,58111.0,58108.0,0.43226116]
[1617727158198,0.01025813,58111.0,58109.0,0.10725655]
[1617727158397,0.01025813,58111.0,58109.0,1.10725655]
[1617727158597,0.41205505,58112.0,58110.0,1.0]
[1617727158598,0.11751461,58112.0,58110.0,1.0]
[1617727158997,0.11751461,58112.0,58111.0,1.43201957]
[1617727159398,0.41205434,58112.0,58111.0,0.43201957]
[1617727159599,0.41205434,58112.0,58111.0,3.58161957]
[1617727159798,0.41205434,58112.0,58111.0,3.1496]
[1617727160299,0.11751464,58112.0,58111.0,3.67329884]
[1617727160498,0.11751464,58112.0,58111.0,4.67329884]
[1617727161199,0.10725655,58112.0,58111.0,4.67329884]
[1617727161597,0.01025802,58112.0,58111.0,4.67329884]
[1617727161799,0.06115802,58112.0,58111.0,4.67329884]
[1617727161999,0.01025802,58112.0,58111.0,4.67329884]
[1617727162200,0.04525802,58113.0,58111.0,4.67329884]
[1617727162598,0.04525802,58113.0,58112.0,1.0]
[1617727163002,0.035,58113.0,58112.0,1.0]
[1617727164906,0.035,58113.0,58112.0,1.43142685]
[1617727165809,0.035,58113.0,58112.0,1.70142685]
[1617727168011,0.035,58113.0,58112.0,2.19094304]
[1617727170217,0.03398191,58113.0,58112.0,2.19094304]
[1617727173418,0.08498191,58113.0,58112.0,2.19094304]
[1617727173820,0.03398191,58113.0,58112.0,2.19094304]
[1617727178829,0.03398191,58113.0,58112.0,2.24284304]
[1617727179028,0.03398191,58113.0,58112.0,2.19094304]
[1617727179829,0.03398191,58113.0,58112.0,2.73649308]
[1617727180229,0.03296398,58113.0,58112.0,2.73649308]
[1617727185438,0.03296398,58113.0,58112.0,2.19094304]
[1617727185839,0.03296398,58113.0,58112.0,2.28255247]
[1617727186241,0.03296398,58113.0,58112.0,2.19094304]
[1617727186439,0.03296398,58113.0,58112.0,5.21994304]
[1617727186841,0.03296398,58113.0,58112.0,2.19094304]
[1617727187242,0.03296398,58113.0,58112.0,2.28255874]
[1617727187643,0.03296398,58113.0,58112.0,1.70142685]
[1617727188044,0.03296398,58113.0,58112.0,2.27963287]
[1617727188245,0.03296398,58113.0,58112.0,1.27963287]
[1617727188444,0.03296398,58113.0,58112.0,0.70142685]
[1617727188643,0.03296398,58113.0,58112.0,1.70142685]
[1617727188844,0.03296398,58113.0,58112.0,2.18798197]
[1617727189044,0.03296398,58113.0,58112.0,1.18798197]
[1617727189443,0.03296398,58113.0,58112.0,2.18798197]
[1617727190646,0.031946,58113.0,58112.0,2.18798197]
[1617727192550,0.031946,58113.0,58112.0,0.91798197]
[1617727192551,0.175106,58113.0,58112.0,0.91798197]
[1617727192954,0.175106,58113.0,58112.0,0.43142685]
[1617727193352,0.175106,58113.0,58111.0,0.42918617]